Cogmind - Beta 16 @@@ ROGUE MODE // 2026.02.04 @ 21:46:24 Player: Ly0ko Result: Self-destructed Performance ------------- Evolutions (2) 1000 Regions Visited (5) 1000 Robots Destroyed (19) 95 Value Destroyed (580) 580 Prototype IDs (23) 460 Alien Tech Used (0) 0 Bonus (300) 300 TOTAL SCORE: 3435 Bonus ------- Aligned with FarCom 300 Cogmind --------- Core Integrity 396/550 Matter 246/300 Energy 64/100 System Corruption 0% Temperature Danger (489) Movement Walking (100) Location -8/Materials Parts ------- > --- POWER (1) -------- (None) > --- PROPULSION (4) --- Aluminum Leg Aluminum Leg Potential Leg Potential Leg > --- UTILITY (3) ------ Small Storage Unit Medium Storage Unit Supersonic Drone Bay (0/1) > --- WEAPON (3) ------- Medium Laser Particle Gun Light Assault Rifle > --- INVENTORY (10) --- Light Treads Light Treads Improved Datajack Peak State ------------ > --- POWER ------------ Ion Engine > --- PROPULSION ------- Aluminum Leg Aluminum Leg Potential Leg Potential Leg > --- UTILITY ---------- Medium Storage Unit Supersonic Drone Bay > --- WEAPON ----------- Medium Laser Particle Gun Light Assault Rifle > --- INVENTORY -------- Light Ion Engine Light Treads Light Treads Aluminum Leg Aluminum Leg Small Storage Unit Grenade Launcher Improved Datajack [Rating: 37] Favorites ----------- Power Ion Engine Engine Ion Engine Propulsion Aluminum Leg Leg Aluminum Leg Utility Small Storage Unit Device Supersonic Drone Bay Storage Small Storage Unit Weapon Assault Rifle Energy Gun Medium Laser Ballistic Gun Assault Rifle Launcher Grenade Launcher Build | -11 -10 -10 -10 -9 -8 ------- Run | Yrd Mat Min Exi Min Mat Slots Evolved 4 | . . . . . 4 Power . | . . . . . . Propulsion 2 | . . . . . 2 Utility 1 | . . . . . 1 Weapon 1 | . . . . . 1 Parts Attached 17 | 6 . . 2 1 8 Power 3 | 1 . . . . 2 Engine 3 | 1 . . . . 2 Core . | . . . . . . Reactor . | . . . . . . Propulsion 6 | 2 . . . . 4 Treads . | . . . . . . Leg 6 | 2 . . . . 4 Wheel . | . . . . . . Hover . | . . . . . . Flight . | . . . . . . Utility 3 | 1 . . 2 . . Device 1 | . . . 1 . . Storage 2 | 1 . . 1 . . Processor . | . . . . . . Hackware . | . . . . . . Protection . | . . . . . . Artifact . | . . . . . . Weapon 5 | 2 . . . 1 2 Energy Gun 2 | . . . . . 2 Energy Cannon . | . . . . . . Ballistic Gun 2 | 2 . . . . . Ballistic Cannon . | . . . . . . Launcher 1 | . . . . 1 . Special Weapon . | . . . . . . Impact Weapon . | . . . . . . Slashing Weapon . | . . . . . . Piercing Weapon . | . . . . . . Special Melee Weapon . | . . . . . . Unidentified Prototypes 1 | . . . 1 . . Parts Lost 3 | . . . . . 3 Power 1 | . . . . . 1 Propulsion 1 | . . . . . 1 Utility . | . . . . . . Weapon 1 | . . . . . 1 Highest Loss Streak 2 | . . . . . 2 To Critical Strikes . | . . . . . . Average Backups 5 | 2 4 5 5 8 7 Power . | . 1 1 1 1 . Propulsion 2 | . 2 2 2 4 4 Utility . | . . . . 1 . Weapon 1 | . 1 2 2 2 1 Tool/Special . | . . . . . . Unused Backups 3 | . . . . . 3 Power . | . . . . . . Propulsion 2 | . . . . . 2 Utility . | . . . . . . Weapon . | . . . . . . Tool/Special 1 | . . . . . 1 Average Slot Usage (%) 92 | . 85 85 94 100 85 Engine 13 | . 14 14 14 14 8 Leg 28 | . 28 28 28 28 32 Device 3 | . . . 1 14 9 Storage 18 | . 14 14 21 14 9 Energy Gun 2 | . . . . . 12 Ballistic Gun 24 | . 28 28 28 16 9 Launcher 1 | . . . . 12 4 Peak Build Rating 37 | 6 6 6 16 16 37 Average Rating 11 | 5 6 6 7 16 32 On Entrance 8 | . 6 6 6 16 16 Avg Prop Armor Cover (%) . | . . . . . . Naked Turns . | . . . . . . Heaviest Build 24 | 13 13 13 23 21 24 Greatest Support 80 | 20 20 20 20 20 80 Greatest Overweight (x) 1 | 1 . . 1 1 1 Average Overweight (x) . | . . . . . . Largest Inventory Capacity 10 | 8 8 8 10 10 10 Average Capacity 9 | 7 8 8 9 10 10 Most Carried 9 | 4 5 5 8 9 9 Average Carried 5 | 2 4 5 5 8 7 Final Capacity 10 | 8 8 8 10 10 10 Final Carried 9 | 4 5 5 8 9 3 Class Distribution -------------------- 86% | Mutant 13% | Skirmisher Dominant Class ---------------- Mutant | -10/Materials Mutant | -10/Mines Mutant | -10/Exiles Mutant | -9/Mines Skirmisher | -8/Materials Resources | -11 -10 -10 -10 -9 -8 ----------- Run | Yrd Mat Min Exi Min Mat Matter Collected 540 | 203 . . 50 79 208 Remotely . | . . . . . . Salvage Created 484 | . . . . 111 373 Parts 30 | . . . . 12 18 Haulers Intercepted . | . . . . . . Recyclers Shooed . | . . . . . . Parts Field Recycled . | . . . . . . Retrieved Matter . | . . . . . . Parts Self-Destructed . | . . . . . . Prevented . | . . . . . . Parts Restored . | . . . . . . Kills | -11 -10 -10 -10 -9 -8 ------- Run | Yrd Mat Min Exi Min Mat Combat Hostiles Destroyed 18 | . . . . 7 11 Guns 8 | . . . . . 8 AOE 10 | . . . . 7 3 Classes Destroyed 5 | . . . . 3 2 Watcher 1 | . . . . . 1 Swarmer 8 | . . . . 4 4 Grunt 8 | . . . . 2 6 Duelist 1 | . . . . 1 . Sentry 1 | . . . . . 1 Best Kill Streak 4 | . . . . 4 4 Combat Bots Only 4 | . . . . 4 4 Max Kills in Single Turn 3 | . . . . 3 3 Gunslinging . | . . . . . . Exploded 3 | . . . . 3 3 Melee . | . . . . . . Uniques/NPCs Destroyed . | . . . . . . Combat | -11 -10 -10 -10 -9 -8 -------- Run | Yrd Mat Min Exi Min Mat Hostile Shots Fired 103 | . . 20 . 25 58 Missed 29 | . . 12 . 5 12 Hits 74 | . . 8 . 20 46 Projectile 74 | . . 8 . 20 46 Critical Strikes 3 | . . . . . 3 Damage Taken 1157 | . . 108 . 186 863 Core 202 | . . 29 . 19 154 Absorbed by Shields . | . . . . . . Regen/Repaired (Parts) 45 | . . . . . 45 Core Remaining (%) 90 | 100 . . . 80 . Volleys Fired 33 | . . . . 7 26 Largest 3 | . . . . 2 3 Hottest 145 | . . . . 50 145 Shots Fired 92 | . . . . 14 78 Gun 79 | . . . . 8 71 Cannon . | . . . . . . Launcher 13 | . . . . 6 7 Special . | . . . . . . Kinetic 31 | . . . . 8 23 Thermal 48 | . . . . . 48 Explosive 13 | . . . . 6 7 Electromagnetic . | . . . . . . Robot Hit Streak 9 | . . . . 3 9 Robot Miss Streak 4 | . . . . 4 3 Penetration Max . | . . . . . . Secondary Targets 1 | . . . . . 1 Max Gunslinging Chain 1 | . . . . . 1 Shots Hit Robots 57 | . . . . 6 51 Core Hits 40 | . . 1 . 9 30 Critical Kills . | . . . . . . Critical Parts Destroyed . | . . . . . . Critical Strikes 1 | . . . . . 1 Burn 1 | . . . . . 1 Melee Attacks . | . . . . . . Impact . | . . . . . . Slashing . | . . . . . . Piercing . | . . . . . . Sneak Attacks . | . . . . . . Combat Hostiles . | . . . . . . Follow-up Attacks . | . . . . . . Damage Inflicted 1461 | . . 16 . 395 1050 Guns 608 | . . . . 22 586 Cannons . | . . . . . . Explosions 828 | . . . . 373 455 Melee . | . . . . . . Ramming 25 | . . 16 . . 9 Kinetic 152 | . . . . 22 130 Thermal 456 | . . . . . 456 Explosive 828 | . . . . 373 455 Electromagnetic . | . . . . . . Impact . | . . . . . . Slashing . | . . . . . . Piercing . | . . . . . . Highest Corruption . | . . . . . . Average Corruption . | . . . . . . Corruption Purged . | . . . . . . Corruption Blocked . | . . . . . . Overload Shots . | . . . . . . Overflow Damage 47 | . . . . 29 18 Projectiles . | . . . . . . Explosions 47 | . . . . 29 18 Melee . | . . . . . . Knockbacks . | . . . . . . Impact . | . . . . . . Kinetic . | . . . . . . Secondary . | . . . . . . Self-Inflicted Damage 132 | . . . . 21 111 Shots 5 | . . . . 2 3 Rammed . | . . . . . . Targets Rammed 6 | . . 2 . . 4 Kicked 6 | . . 2 . . 4 Crushed . | . . . . . . Highest Temperature 537 | . . . . . 537 Average Temperature 233 | . . . . . 233 Received Heat Transfer 498 | . . 66 . . 432 Effects 9 | . . . . . 9 Shutdowns 3 | . . . . . 3 Interference 3 | . . . . . 3 Matter Decay 1 | . . . . . 1 Short Circuit 1 | . . . . . 1 Damage (minor) 1 | . . . . . 1 Siege Activations . | . . . . . . Martial Activations . | . . . . . . Shielding Activations . | . . . . . . Robots Disrupted . | . . . . . . Combat Hostiles . | . . . . . . Robots Corrupted . | . . . . . . Combat Hostiles . | . . . . . . Parts Fried . | . . . . . . Impact Corruptions . | . . . . . . Robots Melted . | . . . . . . Combat Hostiles . | . . . . . . Parts Melted 2 | . . . . . 2 Heat Transferred 1295 | . . . . . 1295 Parts Sabotaged . | . . . . . . Parts Stolen . | . . . . . . Parts Stripped . | . . . . . . Power Chain Reactions . | . . . . . . Alert | -11 -10 -10 -10 -9 -8 ------- Run | Yrd Mat Min Exi Min Mat Maximum Alert Level 1 | . . . . . 1 Low Security (%) 98 | 100 100 100 . 100 96 Level 1 1 | . . . . . 3 Level 2 . | . . . . . . Level 3 . | . . . . . . Level 4 . | . . . . . . Level 5 . | . . . . . . High Security . | . . . . . . Max Security . | . . . . . . Peak Influence 210 | . . 45 . 194 210 Initial 67 | . . . . . 67 Average 58 | . . 14 . 131 80 Influence Increases 660 | . . 60 . 234 366 Destroy 0b10 Robot/C 360 | . . . . 140 220 Destroy 0b10 Robot/NC 5 | . . . . . 5 Destroy Leader 62 | . . . . 20 42 Successful Hack 6 | . . . . . 6 Disable Machine 45 | . . . . 45 . Destroy Structure 62 | . . . . 29 33 Lose Combat Pursuer 120 | . . 60 . . 60 Influence Decreases 458 | . . 45 15 60 338 Entered New Map 122 | . . . 15 . 107 Time Decay 306 | . . 45 . 60 201 Lost Part 30 | . . . . . 30 Squads Dispatched 1 | . . . . . 1 Investigation . | . . . . . . Extermination . | . . . . . . Reinforcement 1 | . . . . . 1 Assault . | . . . . . . Garrison . | . . . . . . Intercept . | . . . . . . Searches Triggered . | . . . . . . Construction Impeded 1 | . . . . . 1 Haulers Reinforced . | . . . . . . Active Scanning Responses . | . . . . . . Cargo Convoy Interrupts . | . . . . . . Stealth | -11 -10 -10 -10 -9 -8 --------- Run | Yrd Mat Min Exi Min Mat Distress Signals 3 | . . . . . 3 Communications Jammed . | . . . . . . Distress Signals . | . . . . . . Times Spotted 33 | . 1 6 . 7 19 Peak Tracking Total 5 | . 1 4 . 4 5 Tactical Retreats 5 | . . 2 . . 3 Traps | -11 -10 -10 -10 -9 -8 ------- Run | Yrd Mat Min Exi Min Mat Traps Triggered . | . . . . . . Indirectly . | . . . . . . Trap Hack Attempts . | . . . . . . Triggered . | . . . . . . Disarmed . | . . . . . . Reprogrammed . | . . . . . . Reused . | . . . . . . Traps Extracted . | . . . . . . Installed . | . . . . . . Triggered . | . . . . . . Machines | -11 -10 -10 -10 -9 -8 ---------- Run | Yrd Mat Min Exi Min Mat Machines Disabled 3 | . . . . 3 . Max in Single Turn 2 | . . . . 2 . Machines Repaired . | . . . . . . Machines Dismantled . | . . . . . . Machines Sabotaged . | . . . . . . Overloaded Fab Kills . | . . . . . . Hacking | -11 -10 -10 -10 -9 -8 --------- Run | Yrd Mat Min Exi Min Mat Machines Accessed 6 | . . . 5 . 1 Terminals . | . . . . . . Fabricators . | . . . . . . Repair Stations 1 | . . . . . 1 Recycling Units . | . . . . . . Scanalyzers . | . . . . . . Garrison Access . | . . . . . . Total Hacks 53 | . . . 50 . 3 Successful 53 | . . . 50 . 3 Failed . | . . . . . . Catastrophic . | . . . . . . Database Lockouts . | . . . . . . Manual 6 | . . . 6 . . Terminals . | . . . . . . Fabricators . | . . . . . . Repair Stations 3 | . . . . . 3 Recycling Units . | . . . . . . Scanalyzers . | . . . . . . Garrison Access . | . . . . . . Terminal Hacks 50 | . . . 50 . . Record 49 | . . . 49 . . Proto ID Catalog 1 | . . . 1 . . Fabricator Hacks . | . . . . . . Repair Station Hacks 3 | . . . . . 3 Scan Component 1 | . . . . . 1 Repair 1 | . . . . . 1 Refit 1 | . . . . . 1 Recycling Unit Hacks . | . . . . . . Scanalyzer . | . . . . . . Garrison Access Hacks . | . . . . . . Unauthorized Hacks . | . . . . . . Terminals . | . . . . . . Fabricators . | . . . . . . Repair Stations . | . . . . . . Recycling Units . | . . . . . . Scanalyzers . | . . . . . . Garrison Access . | . . . . . . Data Cores Recovered . | . . . . . . Used . | . . . . . . Hacking Detections 1 | . . . . . 1 Full Trace Events 1 | . . . . . 1 Feedback Events . | . . . . . . Feedback Blocked . | . . . . . . Robot Schematics Acquired . | . . . . . . Robots Built . | . . . . . . Authchips . | . . . . . . Time . | . . . . . . Total Robot Build Rating . | . . . . . . Part Schematics Acquired . | . . . . . . Parts Built . | . . . . . . Authchips . | . . . . . . Time . | . . . . . . Total Part Build Rating . | . . . . . . Part Studies Acquired . | . . . . . . Parts Repaired 1 | . . . . . 1 Time 26 | . . . . . 26 Parts Recycled . | . . . . . . Recycled Matter . | . . . . . . Retrieved Matter . | . . . . . . Retrieved Components . | . . . . . . Parts Scanalyzed . | . . . . . . Part Schematics Acquired . | . . . . . . Parts Damaged . | . . . . . . Bothacking | -11 -10 -10 -10 -9 -8 ------------ Run | Yrd Mat Min Exi Min Mat Used RIF Installer . | . . . . . . Robots Hacked . | . . . . . . Non-combat . | . . . . . . Combat . | . . . . . . Robot Hacks Applied . | . . . . . . Relay Couplers Released . | . . . . . . Fabnet Peak Effective % . | . . . . . . Robots Rewired . | . . . . . . Allies Hacked . | . . . . . . Hacks Repelled . | . . . . . . Allies | -11 -10 -10 -10 -9 -8 -------- Run | Yrd Mat Min Exi Min Mat Total Allies . | . . . . . . Largest Group . | . . . . . . Highest-Rated Group . | . . . . . . Highest-Rated Ally . | . . . . . . Total Orders . | . . . . . . Ally Attacks . | . . . . . . Total Damage . | . . . . . . Kills . | . . . . . . Allies Corrupted . | . . . . . . Allies Melted . | . . . . . . Intel | -11 -10 -10 -10 -9 -8 ------- Run | Yrd Mat Min Exi Min Mat Active Infowar (turns) . | . . . . . . Robot Analysis Total . | . . . . . . Derelict Logs Recovered . | . . . . . . Drone Launches 2 | . . . 1 . 1 Drone Recoveries 1 | . . . . 1 . Exploration | -11 -10 -10 -10 -9 -8 ------------- Run | Yrd Mat Min Exi Min Mat Turns Passed 2773 | 94 112 166 1824 124 453 Spaces Moved 1776 | 69 93 137 1232 55 190 Core 4 | 4 . . . . . Treads . | . . . . . . Legs 1772 | 65 93 137 1232 55 190 Wheels . | . . . . . . Hover . | . . . . . . Flight . | . . . . . . Fastest Speed 50 | 50 120 120 120 120 105 Average Speed 141 | 117 120 120 147 186 122 Slowest Speed 190 | 190 120 120 190 190 190 Overloaded Moves . | . . . . . . Propulsion Burnouts . | . . . . . . Robots Hopped . | . . . . . . Potential Cave-ins . | . . . . . . Cave-ins Triggered . | . . . . . . Exploration Rate (%) 31 | 4 23 35 92 17 15 Regions Visited 5 Branch Regions 3 Pre-discovered Areas 1 | . . . 1 . . Known Exits Taken . | . . . . . . Unknown Exits Taken 5 | 1 1 1 1 1 . Scrap Searched . | . . . . . . Spaces Dug . | . . . . . . Terrain Destroyed 89 | . . . . 51 38 Melee . | . . . . . . Projectile . | . . . . . . AOE 89 | . . . . 51 38 Terrain Rammed . | . . . . . . Walls Destroyed . | . . . . . . Machines Disabled . | . . . . . . Actions | -11 -10 -10 -10 -9 -8 --------- Run | Yrd Mat Min Exi Min Mat Total 1961 | 78 93 138 1236 63 353 Wait 115 | . . . . . 115 Move 1771 | 68 92 136 1231 54 190 Hop . | . . . . . . Pick Up 11 | 4 1 . 2 1 3 Fast Attach 8 | 6 . . 2 . . Attach 7 | . . . . . 7 Detach 1 | . . . 1 . . Swap 6 | . . . . 1 5 Drop 3 | . . . . . 3 Fire 33 | . . . . 7 26 Melee . | . . . . . . Ram . | . . . . . . Kick 6 | . . 2 . . 4 Crush . | . . . . . . Escape Stasis . | . . . . . . Rewire . | . . . . . . Trap . | . . . . . . Miscellaneous . | . . . . . . Route ------- -11/Scrapyard -10/Materials -10/Mines -10/Exiles (discovered 2 exits: [*Min x2]) -9/Mines -8/Materials History --------- Turn | Location | Event 25 | -11/Scrapyard | Discovered new exit (range 15) 95 | -11/Scrapyard | Entered Materials 194 | -10/Materials | Discovered new exit (range 11) 207 | -10/Materials | Entered Mines 305 | -10/Mines | Build established: Mutant 365 | -10/Mines | Deemed a non-threat by the Exiles lab entrance 366 | -10/Mines | Discovered new exit (range 5) 373 | -10/Mines | Entered Exiles 402 | -10/Exiles | Discovered new exit (range 15) 444 | -10/Exiles | Met 8R-AWN 472 | -10/Exiles | Met EX-HEX 547 | -10/Exiles | Met EX-BIN 573 | -10/Exiles | Aligned with FarCom system 574 | -10/Exiles | Given EX-Vault access code 733 | -10/Exiles | Met EX-DEC 744 | -10/Exiles | Learned location of Zion (-7) 798 | -10/Exiles | Visited The Gauntlet 1114 | -10/Exiles | Discovered new exit (range 11) 1969 | -10/Exiles | Opened EX-Vault 1985 | -10/Exiles | Found Prototype Device 1985 | -10/Exiles | Identified Supersonic Drone Bay 1990 | -10/Exiles | Found Prototype Leg 1992 | -10/Exiles | Found Prototype Leg 2000 | -10/Exiles | Identified Potential Leg (x2) 2079 | -10/Exiles | Warned to stay clear of 0b10 Research branches 2197 | -10/Exiles | Stole two prototypes: Supersonic Drone Bay, Potential Leg 2197 | -10/Exiles | Entered Mines 2197 | -9/Mines | Accompanied by 1 ally 2290 | -9/Mines | Discovered new exit (range 16) 2321 | -9/Mines | Entered Materials 2321 | -8/Materials | Evolved 4 slots: Propulsion x2, Utility x1, Weapon x1 2611 | -8/Materials | Repaired Ion Engine 2723 | -8/Materials | Build established: Skirmisher 2774 | -8/Materials | Self-destructed Last Messages --------------- Particle Gun melted. G-47 Trooper destroyed. Power failure, Backup Power I shutdown. K-01 Serf collects debris. Backup Power I destroyed. Critical hit (Burn: +37). Aluminum Leg destroyed. Particle Gun melted. G-47 Trooper destroyed. Switching to secondary target: G-47 Trooper. G-47 Trooper suffers critical hit (Burn). K-01 Serf collects debris. Kicked K-01 Serf out of the way. Acquired 46 matter. Aluminum Leg broken. Overheating: Short circuit. Overheating: System interference. Particle Gun temporarily disabled. Lgt. Assault Rifle temporarily disabled. Med. Laser temporarily disabled. Map ----- +----------------------------------------------------+ | ?????????????????????????????????????????????????? | | ?????????????????????????????????????????????????? | | ?????????????????????????????????????????????????? | | ?????????????????????????????????????????????????? | | ?????????????????????????????????????????????????? | | ?????????????????????????????????????????????????? | | ?????????????????????????????????????????????????? | | ?????????????????????????????????????????????????? | | ?????????????????????????????????????????????????? | | ?????????????????????????????????????????????????? | | ?????????????????????????????????????????????????? | | ?????????????????????????????????????????????????? | | ?????????????????????????????????????????????????? | | ?????????????????????????????????????????????????? | | ?????????????????????????????????????????????????? | | ?????????????????????????????????????????????????? | | ?????????????????????????????????????????????????? | | ?????????????????????????????????????????????????? | | ????????????????????????????????????????#### ???? | | ?????????????########??########???????? ???? | | ?????????????# #??# T #???????? ????? | | ?????????????# * #??# #??????? ??????? | | ?????????????#"S #??# """ #??????? #???????? | | ?????????????#""" #??# """ #####?? ######### | | ?????????????# "" #??# """ # # ### # | | ?????????????# #??# @g=* # # | | ?????####### ####+#########+#### [ # # !!!# | | + % w % [%= !% + !! # | | ?????#######+#+####### %#### # !! # | | ?????????????????????# # # # | | ?????????????????????# #""" # # | | ?????????????????????# #"R* [ # # # | | ?????????????????????# #""" # #########? | | ?????????????????????# # ! #? #????????? | | ???????????????####### ######### #????????? | | T####+########## #????????? | | ################# ##????????? | | " #???????????????????????????? | | #???????????????????????????? | | ################ #???????????????????????????? | | ????????????##### ##???????????????????????????? | | ????????????#!! #????????????????????????????? | | ????????????#!! #????????????????????????????? | | ????????????#!! #????????????????????????????? | | ????????????#!! #????????????????????????????? | | ????????????#]] #????????????????????????????? | | ????????????#]] #?######?????????????????????? | | ????????????##### #? #?????????????????????? | | ????????????????# # T #?????????????????????? | | ?????????######## # #?????????????????????? | +----------------------------------------------------+ Best States ------------- Heat Dissipation 31 Energy Generation 10 Energy Capacity 250 Matter Stores 288 Matter Capacity 300 Sight Range 16 Terrain Scan Density 10 Evasion (%) 55 Item Schematics ----------------- None Robot Schematics ------------------ None Fabricated ------------ Nothing Repaired ---------- Ion Engine | 25% | -8/Materials Studied --------- None Alien Tech Used ----------------- None Achievements -------------- Sixth Sense Challenges ------------ None Game ------ Seed PlatingMasterScythe Manual? 0 Play Time 00:22:06 Cumulative 4.0 hours Start 2026.02.04 @ 21:26:14 End 2026.02.04 @ 21:46:24 Sessions 1 Manual Loads 0 Difficulty Rogue Special Mode None Game No. 17 Rogue 14 Adventurer 0 Explorer 3 Win Type - Total 0 Types 0/0/0/0/0/0/0/0/0/0 Lore% 6 Gallery% 8 Achievement% 11 Wizard Run 0 Options --------- Layout 0 ASCII 0 Keyboard 0 Movement Arrows Keybinds 0 Fullscreen 1 Font 24/Smallcaps Map View 76x50 Zoom Use 0% Tactical HUD 0 Map Filters NONE Filters NONE Steam 1 RUN: 317e0ea9-8349-461d-af05-6a02856f7594